Cogmind - Beta 11.1 @@@ ROGUE MODE // 2022.06.05 @ 22:37:22 Player: ChromeKnight Result: Destroyed by P-80 Master with Gamma Rifle Performance ------------- Evolutions (8) 4000 Regions Visited (23) 4600 Robots Destroyed (228) 1140 Value Destroyed (10522) 10522 Prototype IDs (58) 1160 Alien Tech Used (2) 400 Bonus (4080) 4080 TOTAL SCORE: 25902 Bonus ------- High Alert Combat Kills 1134 Follower Combat Kills 1863 Aligned with FarCom 300 Met Data Miner 300 Met Zhirov 300 Built Enhanced Grunts 300 A7 Reached Mainframe 300 Met R17 at Cetus 500 Friendly Fire -917 Cogmind --------- Core Integrity 0/1450 Matter 219/300 Energy 150/150 System Corruption 18% Temperature Cool (0) Movement Hovering (60) Location -2/Quarantine Parts ------- > --- POWER (1) -------- Micro Antimatter Reactor > --- PROPULSION (4) --- Improved Antigrav System > --- UTILITY (16) ----- Advanced Target Analyzer Advanced Target Analyzer Armor Integrity Analyzer Improved Utility Shielding Graphene Brace > --- WEAPON (2) ------- (None) > --- INVENTORY (5) ---- Myomer Leg Long-range Sensor Array Quantum Capacitor Null Cannon Peak State ------------ > --- POWER ------------ Light Quantum Reactor > --- PROPULSION ------- Centrium Leg Myomer Exoskeleton > --- UTILITY ---------- Advanced Heat Sink Advanced Heat Sink Advanced Heat Sink Medium Storage Unit Matter Compressor Enhanced Optical Array Advanced Signal Interpreter Advanced Targeting Computer Advanced Target Analyzer Advanced Target Analyzer Armor Integrity Analyzer Advanced Transmission Jammer Layered Medium Armor Plating Graphene Brace Improved Focal Shield Advanced Corruption Screen > --- WEAPON ----------- Omega Cannon > --- INVENTORY -------- Myomer Leg Myomer Leg Myomer Leg Myomer Leg Centrium Leg Improved Arc Projector Null Cannon Railgun [Rating: 174] Favorites ----------- Power Light Antimatter Reactor Engine Ion Engine Power Core Neutrino Core Reactor Light Antimatter Reactor Propulsion Combat Gravmag System Treads Improved Treads Leg Myomer Exoskeleton Hover Unit Combat Gravmag System Flight Unit Flying Fortress v7 Utility Advanced Targeting Computer Device Advanced Heat Sink Storage Large Storage Unit Processor Advanced Targeting Computer Hackware Improved System Shield Protection Centrium Medium Armor Plating Weapon Hypervelocity Gauss Rifle Energy Gun Spread Laser Energy Cannon Null Cannon Ballistic Gun Hypervelocity Gauss Rifle Ballistic Cannon Antimatter Cannon Impact Weapon Great Maul Build | -11 -10 -10 -10 -9 -8 -7 -6 -6 -6 -6 -5 -5 -5 -5 -4 -4 -4 -4 -3 -3 -3 -2 -2 ------- Run | Scr Mat Min Exi Min Mat Fac Fac Low Low Dat Pro Fac Ext Cet Fac Upp Upp Zhi Pro Res Tes Res Qua Slots Evolved 16 | . . . . . 4 2 2 . . . . 2 . . 2 . . . . 2 . 2 . Power . | . . . . . . . . . . . . . . . . . . . . . . . . Propulsion 2 | . . . . . 2 . . . . . . . . . . . . . . . . . . Utility 14 | . . . . . 2 2 2 . . . . 2 . . 2 . . . . 2 . 2 . Weapon . | . . . . . . . . . . . . . . . . . . . . . . . . Parts Attached 269 | 8 13 6 1 2 20 10 24 1 1 . 1 15 17 4 15 1 7 8 6 35 31 40 3 Power 26 | 1 3 . . 1 1 1 2 . . . . 1 2 . 3 . 1 . . 4 3 2 1 Engine 8 | 1 3 . . 1 1 1 1 . . . . . . . . . . . . . . . . Core 5 | . . . . . . . 1 . . . . 1 2 . 1 . . . . . . . . Reactor 13 | . . . . . . . . . . . . . . . 2 . 1 . . 4 3 2 1 Propulsion 52 | 2 3 1 1 . 6 . 3 . . . . 7 1 . . . . 6 2 3 10 6 1 Treads 12 | 2 3 1 1 . 5 . . . . . . . . . . . . . . . . . . Leg 15 | . . . . . . . 2 . . . . 1 . . . . . . . . 6 6 . Wheel . | . . . . . . . . . . . . . . . . . . . . . . . . Hover 23 | . . . . . . . . . . . . 6 1 . . . . 6 2 3 4 . 1 Flight 2 | . . . . . 1 . 1 . . . . . . . . . . . . . . . . Utility 127 | 2 2 3 . . 9 7 15 1 1 . 1 7 7 2 9 1 6 2 3 22 7 20 . Device 53 | 1 1 3 . . 3 3 6 1 . . . 3 2 2 4 . 3 . . 8 4 9 . Storage 7 | 1 1 . . . 1 . . . . . . . . . . . . . . 1 . 3 . Processor 24 | . . . . . 1 2 4 . 1 . 1 2 2 . 2 . 1 . 1 4 2 1 . Hackware 2 | . . . . . . . 2 . . . . . . . . . . . . . . . . Protection 41 | . . . . . 4 2 3 . . . . 2 3 . 3 1 2 2 2 9 1 7 . Artifact . | . . . . . . . . . . . . . . . . . . . . . . . . Weapon 64 | 3 5 2 . 1 4 2 4 . . . . . 7 2 3 . . . 1 6 11 12 1 Energy Gun 13 | 2 4 2 . 1 1 . . . . . . . . . . . . . . . . 3 . Energy Cannon 8 | . . . . . . . . . . . . . . . . . . . . . 5 3 . Ballistic Gun 21 | 1 . . . . 1 1 2 . . . . . 2 2 2 . . . 1 . 4 5 . Ballistic Cannon 21 | . 1 . . . 2 1 2 . . . . . 4 . 1 . . . . 6 2 1 1 Launcher . | . . . . . . . . . . . . . . . . . . . . . . . . Special Weapon . | . . . . . . . . . . . . . . . . . . . . . . . . Impact Weapon 1 | . . . . . . . . . . . . . 1 . . . . . . . . . . Slashing Weapon . | . . . . . . . . . . . . . . . . . . . . . . . . Piercing Weapon . | . . . . . . . . . . . . . . . . . . . . . . . . Special Melee Weapon . | . . . . . . . . . . . . . . . . . . . . . . . . Unidentified Prototypes 17 | . . 1 . . 1 . 2 . . . . 1 . 1 2 . . 3 . 1 5 . . Parts Lost 64 | . . . . . 1 . 2 1 . . . 2 4 . . . 2 . 9 6 8 28 1 Power 6 | . . . . . . . 1 . . . . . 2 . . . . . 1 . . 2 . Propulsion 11 | . . . . . . . . . . . . 1 . . . . . . 3 1 2 4 . Utility 35 | . . . . . 1 . 1 1 . . . . 1 . . . 2 . 3 5 6 15 . Weapon 12 | . . . . . . . . . . . . 1 1 . . . . . 2 . . 7 1 Highest Loss Streak 12 | . . . . . 1 . 2 1 . . . 1 3 . . . 1 . 6 2 3 12 1 To Critical Strikes . | . . . . . . . . . . . . . . . . . . . . . . . . Average Slot Usage (%) 88 | . 99 100 100 95 77 75 77 70 73 73 73 93 97 99 99 99 99 100 93 82 83 74 22 Engine 4 | . 14 14 14 14 9 7 1 . . . . . . . . . . . . . . . . Reactor 1 | . . . . . . . . . . . . . . . 2 5 4 5 3 3 4 3 . Treads 8 | . 27 28 28 28 23 . . . . . . . . . . . . . . . . . . Leg 1 | . . . . . . . . . . . . . . . . . . . . . 7 8 . Hover 7 | . . . . . . . . . . . . 21 23 23 21 21 21 21 19 14 6 . . Flight 1 | . . . . . 1 7 5 6 6 6 6 . . . . . . . . . . . . Device 10 | . 14 14 14 9 10 14 12 3 3 . . 4 5 5 10 10 10 10 9 9 11 18 4 Storage 7 | . 14 14 14 14 9 7 6 6 6 6 6 5 5 5 5 5 5 5 5 3 4 7 . Processor 23 | . . . . . . 13 24 33 35 40 40 39 42 47 42 42 36 36 36 37 36 25 13 Protection 4 | . . . . . 6 8 6 6 6 6 6 4 2 . 5 4 9 10 8 7 2 3 4 Energy Gun 7 | . 27 28 28 28 11 . . . . . . . . . . . . . . . . . . Ballistic Gun 3 | . . . . . . 7 6 6 6 6 6 3 2 7 9 10 10 10 8 . 7 2 . Ballistic Cannon 2 | . . . . . 4 7 6 6 6 6 6 5 7 3 . . . . . 3 . 2 . Naked Turns . | . . . . . . . . . . . . . . . . . . . . . . . . Heaviest Build 72 | 12 32 32 32 38 50 50 49 40 40 37 37 52 56 53 55 55 60 60 59 49 49 72 11 Greatest Support 130 | 40 46 46 43 43 83 50 50 50 50 50 50 56 56 56 56 56 56 56 56 48 125 130 3 Greatest Overweight (x) 6 | . . . . . 1 . 2 . . . . 4 . . . . 1 2 1 6 2 1 3 Average Overweight (x) . | . . . . . . . . . . . . . . . . . . 1 . . . . . Largest Inventory Capacity 15 | 8 15 15 15 15 15 15 15 15 15 15 15 15 15 15 15 15 15 15 15 15 5 10 5 Average Capacity 12 | 7 9 15 15 15 15 15 15 15 15 15 15 15 15 15 15 15 15 15 15 6 5 9 5 Most Carried 15 | 4 15 15 15 15 15 15 15 15 15 15 15 15 15 15 15 15 15 15 15 14 5 10 5 Average Carried 11 | 2 8 14 14 15 14 14 14 14 14 15 15 14 13 14 14 14 13 14 14 5 4 7 5 Final Capacity 15 | 8 15 15 15 15 15 15 15 15 15 15 15 15 15 15 15 15 15 15 15 5 5 5 5 Final Carried 15 | 3 15 15 15 15 15 15 15 15 15 15 15 14 14 14 15 15 14 15 14 5 5 5 5 Class Distribution -------------------- 51% | Mutant 16% | Scavenger-Mutant 10% | Scavenger-Scout 8% | Scavenger-Skirmisher 6% | Scout 6% | Commander-Mutant Dominant Class ---------------- Mutant | -10/Materials Mutant | -10/Mines Mutant | -10/Exiles Mutant | -9/Mines Scavenger-Mutant | -8/Materials Mutant | -7/Factory Scout | -6/Factory Mutant | -6/Lower Caves Mutant | -6/Lower Caves Mutant | -6/Data Miner Mutant | -5/Proximity Caves Mutant | -5/Factory Mutant | -5/Extension Commander-Mutant | -5/Cetus Scavenger-Mutant | -4/Factory Scavenger-Scout | -4/Upper Caves Scavenger-Skirmisher | -4/Upper Caves Scavenger-Skirmisher | -4/Zhirov Scavenger-Skirmisher | -3/Proximity Caves Scavenger-Scout | -3/Research Scavenger-Mutant | -3/Testing Scavenger-Mutant | -2/Research Mutant | -2/Quarantine Resources | -11 -10 -10 -10 -9 -8 -7 -6 -6 -6 -6 -5 -5 -5 -5 -4 -4 -4 -4 -3 -3 -3 -2 -2 ----------- Run | Scr Mat Min Exi Min Mat Fac Fac Low Low Dat Pro Fac Ext Cet Fac Upp Upp Zhi Pro Res Tes Res Qua Matter Collected 9435 | 272 350 158 . 106 340 320 513 304 249 . 325 228 935 209 330 220 315 290 128 1481 674 1688 . Remotely . | . . . . . . . . . . . . . . . . . . . . . . . . Salvage Created 10255 | 53 404 120 . 187 673 108 283 215 49 . 270 106 716 83 1245 267 353 369 195 1629 1156 1730 44 Parts 504 | 9 25 12 . 19 44 6 18 1 1 . 11 7 30 4 47 16 30 12 14 62 63 69 4 Haulers Intercepted 9 | . 1 . . . 1 . 1 . . . . . 1 . 1 . . . . 3 . 1 . Recyclers Shooed 10 | . 1 . . . . . 1 . . . . . 3 . 1 . . . . . . 4 . Parts Field Recycled . | . . . . . . . . . . . . . . . . . . . . . . . . Retrieved Matter . | . . . . . . . . . . . . . . . . . . . . . . . . Parts Self-Destructed 86 | . . . . . . . . 1 6 . 15 . . . . 15 23 9 17 . . . . Prevented 3 | . . . . . . . . . . . 2 . . . . 1 . . . . . . . Kills | -11 -10 -10 -10 -9 -8 -7 -6 -6 -6 -6 -5 -5 -5 -5 -4 -4 -4 -4 -3 -3 -3 -2 -2 ------- Run | Scr Mat Min Exi Min Mat Fac Fac Low Low Dat Pro Fac Ext Cet Fac Upp Upp Zhi Pro Res Tes Res Qua Combat Hostiles Destroyed 170 | . 11 3 . 6 17 3 5 3 3 . 7 7 11 2 8 5 6 . 3 28 15 26 1 Guns 89 | . 11 3 . 6 11 1 1 2 2 . 4 1 1 1 8 5 6 . 3 . 15 8 . Cannons 80 | . . . . . 6 2 4 1 1 . 3 5 10 1 . . . . . 28 . 18 1 AOE 1 | . . . . . . . . . . . . 1 . . . . . . . . . . . Classes Destroyed 19 | 1 7 1 . 1 2 . 1 1 . . . . 1 . 1 1 1 . . . . 1 . Worker 9 | . 1 . . 2 . . . . . . . 1 . . . . . . . 2 . 3 . Builder 8 | . . 1 . . . . 4 . . . . . 2 . . . . . . 1 . . . Tunneler 5 | 3 . 1 . . . . . . . . . . 1 . . . . . . . . . . Hauler 9 | . 1 . . . 1 . 1 . . . . . 1 . 1 . . . . 3 . 1 . Recycler 9 | . 1 . . . . . . . . . . . 1 . 2 . . . . 1 . 4 . Minesweeper 2 | . . . . . . . . . . . . . . . . 2 . . . . . . . Operator 3 | . 2 . . . . . . . . . . . . . . . . . . 1 . . . Watcher 9 | . 3 . . . . 2 . . . . . . 1 . . . . . . 2 . 1 . Swarmer 33 | . 3 . . 3 4 . . 2 . . 3 4 . 1 . 4 1 . 1 7 . . . Grunt 56 | . 8 3 . 2 8 . 2 . 1 . 2 . 5 . 5 1 1 . 1 5 6 6 . Brawler 4 | . . . . 1 . . . . 1 . 1 . . . . . . . . . . 1 . Duelist 3 | . . . . . 1 . . . . . . . . . . . . . . . . 2 . Sentry 21 | . . . . . 4 3 1 . 1 . . 1 4 . 1 . . . . 4 . 2 . Hunter 9 | . . . . . . . . . . . . . . . 2 . 2 . . . 5 . . Programmer 38 | . . . . . . . 2 . . . 1 2 . . . . 1 . 1 12 4 14 1 Heavy 1 | . . . . . . . . . . . . . . . . . . . . . . 1 . Behemoth 2 | . . . . . . . . . . . . . 2 . . . . . . . . . . Cetus Guard 1 | . . . . . . . . . . . . . . 1 . . . . . . . . . Enhanced Grunt 2 | . . . . . . . . . . . . . . . 2 . . . . . . . . Packrat 2 | . . . . . . . . 2 . . . . . . . . . . . . . . . Master Thief 1 | . . . . . . . . . . . . . . . . . 1 . . . . . . Savage 1 | . . . . . . . . . . . . . . . 1 . . . . . . . . Butcher 1 | . . . . . . . . . . . . . 1 . . . . . . . . . . Mutant 1 | . . . . . . . . 1 . . . . . . . . . . . . . . . Best Kill Streak 11 | 2 3 2 . 2 5 1 3 2 2 . 3 4 5 1 4 4 2 . 2 11 4 11 1 Combat Bots Only 9 | . 3 1 . 2 5 1 2 2 2 . 3 4 4 1 4 4 2 . 2 9 4 5 1 Max Kills in Single Turn 2 | 1 1 1 . 1 1 1 1 1 1 . 1 1 1 1 1 2 1 . 1 2 1 2 1 Gunslinging . | . . . . . . . . . . . . . . . . . . . . . . . . Exploded 1 | . . . . . . . . . . . . 1 . . . . . . . . . . . Melee . | . . . . . . . . . . . . . . . . . . . . . . . . Uniques/NPCs Destroyed . | . . . . . . . . . . . . . . . . . . . . . . . . Combat | -11 -10 -10 -10 -9 -8 -7 -6 -6 -6 -6 -5 -5 -5 -5 -4 -4 -4 -4 -3 -3 -3 -2 -2 -------- Run | Scr Mat Min Exi Min Mat Fac Fac Low Low Dat Pro Fac Ext Cet Fac Upp Upp Zhi Pro Res Tes Res Qua Damage Taken 18221 | . 399 43 . 241 944 355 984 100 260 . 129 702 1029 193 321 216 564 . 1601 1815 1485 6237 603 Core 2970 | . 112 . . 38 131 39 116 26 52 . 15 45 184 . 22 13 135 . 339 47 200 1121 335 Absorbed by Shields 22 | . . . . . . . 22 . . . . . . . . . . . . . . . . Redirected to Shielding 462 | . . . . . 107 . . . . . . . . . . . 63 . 154 . . 104 34 Regen/Repaired (Parts) 11 | . . . . . 11 . . . . . . . . . . . . . . . . . . Core Remaining (%) 73 | 100 . . . 40 76 94 . . . . 75 . . 77 . . . . 55 . 73 . . Volleys Fired 787 | 4 42 10 . 21 49 47 53 13 16 . 13 26 79 14 26 16 25 20 22 126 34 122 9 Largest 2 | 2 2 2 . 2 2 2 2 2 2 . 2 2 2 2 2 2 2 2 2 1 2 2 1 Hottest 170 | 60 130 130 . 126 136 73 76 55 55 . 55 55 114 114 70 66 66 66 66 60 170 130 65 Shots Fired 1160 | 8 85 21 . 39 82 57 63 20 32 . 26 35 120 25 52 32 50 40 26 126 61 152 8 Gun 656 | 8 85 21 . 39 55 10 10 7 16 . 13 10 33 5 52 32 50 40 26 . 53 91 . Cannon 504 | . . . . . 27 47 53 13 16 . 13 25 87 20 . . . . . 126 8 61 8 Launcher . | . . . . . . . . . . . . . . . . . . . . . . . . Special . | . . . . . . . . . . . . . . . . . . . . . . . . Kinetic 918 | 4 . . . . 28 57 63 20 32 . 26 35 120 25 52 32 50 40 26 126 57 117 8 Thermal 212 | 4 85 21 . 39 54 . . . . . . . . . . . . . . . 4 5 . Explosive . | . . . . . . . . . . . . . . . . . . . . . . . . Electromagnetic 30 | . . . . . . . . . . . . . . . . . . . . . . 30 . Robot Hit Streak 47 | 2 16 7 . 5 18 10 13 6 12 . 4 13 26 4 15 8 8 38 47 39 12 23 5 Robot Miss Streak 9 | 2 9 3 . 2 4 3 3 2 2 . 3 1 4 6 3 5 5 . 2 4 1 2 1 Penetration Max 2 | . . . . . . . . . . . . . 1 . 1 1 1 1 1 . 1 2 . Secondary Targets 6 | . 2 . . 1 . . . . . . . . . . . 1 1 . . . 1 . . Max Gunslinging Chain 1 | . 1 . . 1 . . . . . . . . . . . 1 1 . . . 1 . . Shots Hit Robots 798 | 3 74 15 . 23 59 31 29 12 23 . 14 28 83 12 34 24 29 38 22 78 36 125 6 Core Hits 467 | 3 84 19 . 9 27 8 20 8 7 . 10 8 34 4 24 12 13 19 12 76 20 48 2 Critical Kills 49 | . . . . . . . . . . . 1 . 2 2 10 7 5 1 3 . 15 3 . Critical Parts Destroyed 47 | . . . . . . . . . 1 . . . 3 4 5 3 7 5 6 . 9 4 . Critical Strikes 171 | . . . . 1 4 1 3 1 7 . 1 5 16 7 15 10 12 8 9 27 24 18 2 Burn 3 | . . . . 1 2 . . . . . . . . . . . . . . . . . . Destroy 98 | . . . . . . . . . 1 . 1 . 5 6 15 10 12 8 9 . 24 7 . Blast 69 | . . . . . 2 1 3 1 6 . . 5 10 1 . . . . . 27 . 11 2 Smash 1 | . . . . . . . . . . . . . 1 . . . . . . . . . . Melee Attacks 2 | . . . . . . . . . . . . . 2 . . . . . . . . . . Impact 2 | . . . . . . . . . . . . . 2 . . . . . . . . . . Slashing . | . . . . . . . . . . . . . . . . . . . . . . . . Piercing . | . . . . . . . . . . . . . . . . . . . . . . . . Sneak Attacks 1 | . . . . . . . . . . . . . 1 . . . . . . . . . . Combat Hostiles . | . . . . . . . . . . . . . . . . . . . . . . . . Follow-up Attacks . | . . . . . . . . . . . . . . . . . . . . . . . . Damage Inflicted 24700 | 32 851 221 . 389 1301 785 801 364 733 . 401 1107 2894 316 1055 176 181 266 174 4702 326 7315 310 Guns 7986 | 32 851 221 . 389 857 121 176 131 285 . 185 172 609 128 1055 176 181 266 174 . 326 1651 . Cannons 16478 | . . . . . 444 664 625 233 448 . 216 854 2150 188 . . . . . 4702 . 5664 290 Explosions 81 | . . . . . . . . . . . . 81 . . . . . . . . . . . Melee 135 | . . . . . . . . . . . . . 135 . . . . . . . . . . Ramming 20 | . . . . . . . . . . . . . . . . . . . . . . . 20 Kinetic 21844 | 10 . . . . 444 785 801 364 733 . 401 1026 2759 316 1055 176 181 266 174 4702 326 7035 290 Thermal 2506 | 22 851 221 . 389 857 . . . . . . 81 . . . . . . . . . 85 . Explosive . | . . . . . . . . . . . . . . . . . . . . . . . . Electromagnetic 195 | . . . . . . . . . . . . . . . . . . . . . . 195 . Impact 135 | . . . . . . . . . . . . . 135 . . . . . . . . . . Slashing . | . . . . . . . . . . . . . . . . . . . . . . . . Piercing . | . . . . . . . . . . . . . . . . . . . . . . . . Highest Corruption 18 | . 3 3 3 3 . 3 1 1 1 1 1 5 5 5 . . . . 2 1 1 11 18 Average Corruption 2 | . 2 3 3 3 . 2 1 1 1 1 1 4 5 5 . . . . 1 1 1 7 13 Corruption Purged . | . . . . . . . . . . . . . . . . . . . . . . . . Corruption Blocked 8 | . . . . . . . . . . . . . . . . . . . . 3 2 3 . Effects 156 | . 10 16 7 18 . 8 7 1 1 . 2 5 25 16 . . . . 3 12 6 15 4 Message Errors 42 | . 2 6 1 7 . 1 2 . . . 1 3 7 6 . . . . 1 4 1 . . Matter Fused 39 | . 4 4 3 5 . 2 2 1 1 . . . 3 3 . . . . . 3 2 6 . Heat Flow Errors 15 | . . . 2 1 . 3 1 . . . . 2 . 1 . . . . . 1 1 2 1 Energy Discharges 14 | . 1 1 . 1 . 1 1 . . . . . 3 4 . . . . . 1 . 1 . Parts Rejected 3 | . . . . . . . . . . . . . . . . . . . 1 . 1 1 . Data Loss (minor) 20 | . 1 3 1 1 . . . . . . 1 . 5 2 . . . . 1 3 1 1 . Data Loss (major) 8 | . 1 1 . 2 . . 1 . . . . . 1 . . . . . . . . . 2 Misfires 9 | . 1 1 . 1 . 1 . . . . . . 4 . . . . . . . . 1 . Alerts 1 | . . . . . . . . . . . . . 1 . . . . . . . . . . Misdirections 1 | . . . . . . . . . . . . . . . . . . . . . . 1 . Weapon Failures 4 | . . . . . . . . . . . . . 1 . . . . . . . . 2 1 Overload Shots . | . . . . . . . . . . . . . . . . . . . . . . . . Overflow Damage 1713 | . . . . . . . 16 . . . 3 248 178 . . . . . . 131 . 1137 . Projectiles 1461 | . . . . . . . 16 . . . 3 131 43 . . . . . . 131 . 1137 . Explosions 117 | . . . . . . . . . . . . 117 . . . . . . . . . . . Melee 135 | . . . . . . . . . . . . . 135 . . . . . . . . . . Knockbacks 87 | . . . . . 4 . . . 4 . 2 13 8 1 . . . . . 39 . 16 . Impact . | . . . . . . . . . . . . . . . . . . . . . . . . Kinetic 76 | . . . . . 4 . . . 4 . 1 12 8 1 . . . . . 33 . 13 . Secondary 11 | . . . . . . . . . . . 1 1 . . . . . . . 6 . 3 . Self-Inflicted Damage 223 | . . . . . . . . . . . . 214 . . . . . . . . . . 9 Shots 3 | . . . . . . . . . . . . 3 . . . . . . . . . . . Rammed 3 | . . . . . . . . . . . . . . . . . . . . . . . 3 Targets Rammed 3 | . . . . . . . . . . . . . . . . . . . . . . . 3 Kicked . | . . . . . . . . . . . . . . . . . . . . . . . . Crushed . | . . . . . . . . . . . . . . . . . . . . . . . . Highest Temperature 344 | . 344 198 205 292 321 220 179 53 29 . 17 135 18 185 26 1 . . . 129 195 128 26 Average Temperature 79 | . 113 73 104 95 85 83 33 20 9 . 5 30 7 63 16 1 . . . 60 77 91 26 Received Heat Transfer 2616 | . 204 24 . 54 423 66 285 80 96 . 27 18 351 9 67 . . . 210 183 168 351 . Effects 5 | . 2 . . . 3 . . . . . . . . . . . . . . . . . . Energy Bleed 1 | . 1 . . . . . . . . . . . . . . . . . . . . . . Interference 2 | . . . . . 2 . . . . . . . . . . . . . . . . . . Short Circuit 1 | . 1 . . . . . . . . . . . . . . . . . . . . . . Damage (minor) 1 | . . . . . 1 . . . . . . . . . . . . . . . . . . Siege Activations . | . . . . . . . . . . . . . . . . . . . . . . . . Robots Corrupted . | . . . . . . . . . . . . . . . . . . . . . . . . Combat Hostiles . | . . . . . . . . . . . . . . . . . . . . . . . . Parts Fried 3 | . . . . . . . . . . . . . . . . 2 . . . . . 1 . Impact Corruptions 10 | . . . . . . . . . . . 1 . 6 . . . . . . . . 3 . Robots Melted . | . . . . . . . . . . . . . . . . . . . . . . . . Combat Hostiles . | . . . . . . . . . . . . . . . . . . . . . . . . Parts Melted 4 | . 1 1 . . 2 . . . . . . . . . . . . . . . . . . Heat Transferred 4114 | 50 1075 299 . 925 1665 . . . . . . 50 . . . . . . . . . 50 . Parts Sabotaged . | . . . . . . . . . . . . . . . . . . . . . . . . Parts Stolen 3 | . . . . . . . . . . . . . . . . . 3 . . . . . . Parts Stripped . | . . . . . . . . . . . . . . . . . . . . . . . . Power Chain Reactions . | . . . . . . . . . . . . . . . . . . . . . . . . Missiles Intercepted . | . . . . . . . . . . . . . . . . . . . . . . . . Alert | -11 -10 -10 -10 -9 -8 -7 -6 -6 -6 -6 -5 -5 -5 -5 -4 -4 -4 -4 -3 -3 -3 -2 -2 ------- Run | Scr Mat Min Exi Min Mat Fac Fac Low Low Dat Pro Fac Ext Cet Fac Upp Upp Zhi Pro Res Tes Res Qua Peak Influence 1336 | 15 171 159 . 151 334 205 351 . . . . 386 413 909 1336 . . . . 595 512 745 332 Initial 396 | . 9 11 . . 27 120 45 . . . . 175 172 124 396 . . . . . 323 258 306 Average 220 | 5 69 48 . 48 151 91 89 . . . . 310 238 572 902 . . . . 191 366 435 314 Maximum Alert Level 4 | . . . . . 1 1 1 . . . . 1 2 3 4 . . . . 2 2 3 1 Low Security (%) 57 | 100 100 100 . 100 58 92 83 . . . . 14 35 2 . . . . . 57 . 3 . Level 1 25 | . . . . . 41 7 16 . . . . 85 51 35 29 . . . . 23 58 40 100 Level 2 10 | . . . . . . . . . . . . . 12 4 6 . . . . 19 41 47 . Level 3 3 | . . . . . . . . . . . . . . 56 9 . . . . . . 8 . Level 4 2 | . . . . . . . . . . . . . . . 55 . . . . . . . . Level 5 . | . . . . . . . . . . . . . . . . . . . . . . . . High Security . | . . . . . . . . . . . . . . . . . . . . . . . . Max Security . | . . . . . . . . . . . . . . . . . . . . . . . . Squads Dispatched 38 | . 2 1 . . 1 4 5 . . . . 1 1 . 3 . . . 1 6 5 8 . Investigation 4 | . . 1 . . . 1 . . . . . . . . . . . . . . 1 1 . Extermination 13 | . . . . . . 1 3 . . . . 1 . . 1 . . . . 3 2 2 . Reinforcement 18 | . 2 . . . 1 2 2 . . . . . 1 . 2 . . . . 3 2 3 . Assault 3 | . . . . . . . . . . . . . . . . . . . 1 . . 2 . Garrison . | . . . . . . . . . . . . . . . . . . . . . . . . Intercept . | . . . . . . . . . . . . . . . . . . . . . . . . Searches Triggered . | . . . . . . . . . . . . . . . . . . . . . . . . Data Miner Redirects 1 | . . . . . . . . . . . . . . . . . . . . . . 1 . Construction Impeded 5 | . . . . . . . 1 . . . . . 1 . 1 . . . . 2 . . . Haulers Reinforced 2 | . . . . . . . 1 . . . . . . . . . . . . . . 1 . Active Scanning Responses . | . . . . . . . . . . . . . . . . . . . . . . . . Cargo Convoy Interrupts . | . . . . . . . . . . . . . . . . . . . . . . . . Stealth | -11 -10 -10 -10 -9 -8 -7 -6 -6 -6 -6 -5 -5 -5 -5 -4 -4 -4 -4 -3 -3 -3 -2 -2 --------- Run | Scr Mat Min Exi Min Mat Fac Fac Low Low Dat Pro Fac Ext Cet Fac Upp Upp Zhi Pro Res Tes Res Qua Distress Signals 18 | . 1 . . . 1 . 1 . . . . 1 1 2 4 . . . . 3 3 1 . Communications Jammed 25 | . . . . . . . . . . . . . . . . . . . . . . 25 . Distress Signals 20 | . . . . . . . . . . . . . . . . . . . . . . 20 . Times Spotted 338 | . 21 4 . 7 26 4 28 6 4 . 10 10 21 14 27 6 11 . 17 42 24 53 3 Peak Tracking Total 11 | . 3 2 . 3 7 2 11 3 3 . 4 4 5 5 9 5 3 . 10 8 7 6 2 Tactical Retreats 40 | . 2 1 . 1 4 . 8 1 1 . . 1 1 1 . 2 1 . 1 3 3 9 . Traps | -11 -10 -10 -10 -9 -8 -7 -6 -6 -6 -6 -5 -5 -5 -5 -4 -4 -4 -4 -3 -3 -3 -2 -2 ------- Run | Scr Mat Min Exi Min Mat Fac Fac Low Low Dat Pro Fac Ext Cet Fac Upp Upp Zhi Pro Res Tes Res Qua Traps Triggered 21 | . 4 . . . . 2 2 . . . . . 3 . 1 . . . . 4 1 4 . Indirectly . | . . . . . . . . . . . . . . . . . . . . . . . . Trap Hack Attempts . | . . . . . . . . . . . . . . . . . . . . . . . . Triggered . | . . . . . . . . . . . . . . . . . . . . . . . . Disarmed . | . . . . . . . . . . . . . . . . . . . . . . . . Reprogrammed . | . . . . . . . . . . . . . . . . . . . . . . . . Reused 2 | . . . . 2 . . . . . . . . . . . . . . . . . . . Traps Extracted . | . . . . . . . . . . . . . . . . . . . . . . . . Installed 21 | . . . . 5 . . . . . . . . . . . 16 . . . . . . . Triggered 5 | . . . . 2 . . . . . . 1 . . . . 1 1 . . . . . . Machines | -11 -10 -10 -10 -9 -8 -7 -6 -6 -6 -6 -5 -5 -5 -5 -4 -4 -4 -4 -3 -3 -3 -2 -2 ---------- Run | Scr Mat Min Exi Min Mat Fac Fac Low Low Dat Pro Fac Ext Cet Fac Upp Upp Zhi Pro Res Tes Res Qua Machines Disabled 18 | . . . . 1 1 . . 1 . . . 5 2 . 3 . . . . . 3 2 . Max in Single Turn 5 | . . . . . 1 . . 1 . . . 5 1 . . . . . . . 1 1 . Garrison Access 3 | . . . . . . . . . . . . . . . . . . . . 1 1 1 . Machines Sabotaged . | . . . . . . . . . . . . . . . . . . . . . . . . Garrisons Compromised . | . . . . . . . . . . . . . . . . . . . . . . . . Overloaded Fab Kills . | . . . . . . . . . . . . . . . . . . . . . . . . Hacking | -11 -10 -10 -10 -9 -8 -7 -6 -6 -6 -6 -5 -5 -5 -5 -4 -4 -4 -4 -3 -3 -3 -2 -2 --------- Run | Scr Mat Min Exi Min Mat Fac Fac Low Low Dat Pro Fac Ext Cet Fac Upp Upp Zhi Pro Res Tes Res Qua Machines Accessed 27 | . 2 1 1 2 1 2 2 1 . 4 . . . . . 2 . 4 . 2 1 1 1 Terminals 8 | . 2 . . 2 . . 1 . . . . . . . . . . . . 1 . 1 1 Fabricators 1 | . . . . . . 1 . . . . . . . . . . . . . . . . . Repair Stations 1 | . . . . . 1 . . . . . . . . . . . . . . . . . . Recycling Units . | . . . . . . . . . . . . . . . . . . . . . . . . Scanalyzers . | . . . . . . . . . . . . . . . . . . . . . . . . Garrison Access 4 | . . . . . . 1 1 . . . . . . . . . . . . 1 1 . . Total Hacks 89 | . 9 1 1 6 2 4 4 1 . 29 . . . . . 2 . 17 . 4 3 3 3 Successful 64 | . 3 1 1 2 2 . . 1 . 29 . . . . . 2 . 17 . 3 1 1 1 Failed 25 | . 6 . . 4 . 4 4 . . . . . . . . . . . . 1 2 2 2 Catastrophic 5 | . . . . . . 2 . . . . . . . . . . . . . 1 1 1 . Database Lockouts . | . . . . . . . . . . . . . . . . . . . . . . . . Manual 21 | . 9 . 1 6 . . 2 . . . . . . 1 . . . . . 2 . . . Terminals 25 | . 9 . . 6 . . 2 . . . . . . . . . . . . 2 . 3 3 Fabricators 2 | . . . . . . 2 . . . . . . . . . . . . . . . . . Repair Stations 2 | . . . . . 2 . . . . . . . . . . . . . . . . . . Recycling Units . | . . . . . . . . . . . . . . . . . . . . . . . . Scanalyzers . | . . . . . . . . . . . . . . . . . . . . . . . . Garrison Access 9 | . . . . . . 2 2 . . . . . . . . . . . . 2 3 . . Terminal Hacks 55 | . . 1 1 2 . . . 1 . 29 . . . . . 2 . 17 . . . 1 1 Record 18 | . . . . . . . . . . 11 . . . . . 1 . 5 . . . . 1 Part Schematic 15 | . . . . . . . . . . 11 . . . . . . . 4 . . . . . Robot Schematic 4 | . . . . . . . . . . 4 . . . . . . . . . . . . . Robot Analysis 6 | . . . . 2 . . . . . . . . . . . . . 4 . . . . . Prototype ID Bank 7 | . . . . . . . . . . 3 . . . . . . . 4 . . . . . Open Door 4 | . . 1 . . . . . 1 . . . . . . . 1 . . . . . 1 . EX-Prototype ID Bank 1 | . . . 1 . . . . . . . . . . . . . . . . . . . . Fabricator Hacks . | . . . . . . . . . . . . . . . . . . . . . . . . Repair Station Hacks 2 | . . . . . 2 . . . . . . . . . . . . . . . . . . Scan Component 1 | . . . . . 1 . . . . . . . . . . . . . . . . . . Repair 1 | . . . . . 1 . . . . . . . . . . . . . . . . . . Recycling Unit Hacks . | . . . . . . . . . . . . . . . . . . . . . . . . Scanalyzer . | . . . . . . . . . . . . . . . . . . . . . . . . Garrison Access Hacks 2 | . . . . . . . . . . . . . . . . . . . . 1 1 . . Seal Access 2 | . . . . . . . . . . . . . . . . . . . . 1 1 . . Unauthorized Hacks 5 | . 3 . . . . . . . . . . . . . . . . . . 2 . . . Terminals 5 | . 3 . . . . . . . . . . . . . . . . . . 2 . . . Botnet 3 | . 2 . . . . . . . . . . . . . . . . . . 1 . . . Operators 2 | . 1 . . . . . . . . . . . . . . . . . . 1 . . . Fabricators . | . . . . . . . . . . . . . . . . . . . . . . . . Repair Stations . | . . . . . . . . . . . . . . . . . . . . . . . . Recycling Units . | . . . . . . . . . . . . . . . . . . . . . . . . Scanalyzers . | . . . . . . . . . . . . . . . . . . . . . . . . Garrison Access . | . . . . . . . . . . . . . . . . . . . . . . . . Data Cores Recovered . | . . . . . . . . . . . . . . . . . . . . . . . . Used . | . . . . . . . . . . . . . . . . . . . . . . . . Hacking Detections 12 | . 2 . . 2 . 2 2 . . . . . . . . . . . . 1 1 1 1 Full Trace Events 3 | . 1 . . . . 1 . . . . . . . . . . . . . . . 1 . Feedback Events . | . . . . . . . . . . . . . . . . . . . . . . . . Feedback Blocked . | . . . . . . . . . . . . . . . . . . . . . . . . Robot Schematics Acquired 4 | . . . . . . . . . . 4 . . . . . . . . . . . . . Robots Built . | . . . . . . . . . . . . . . . . . . . . . . . . Authchips . | . . . . . . . . . . . . . . . . . . . . . . . . Time . | . . . . . . . . . . . . . . . . . . . . . . . . Total Robot Build Rating . | . . . . . . . . . . . . . . . . . . . . . . . . Part Schematics Acquired 15 | . . . . . . . . . . 11 . . . . . . . 4 . . . . . Parts Built . | . . . . . . . . . . . . . . . . . . . . . . . . Authchips . | . . . . . . . . . . . . . . . . . . . . . . . . Time . | . . . . . . . . . . . . . . . . . . . . . . . . Total Part Build Rating . | . . . . . . . . . . . . . . . . . . . . . . . . Parts Repaired 1 | . . . . . 1 . . . . . . . . . . . . . . . . . . Time 108 | . . . . . 108 . . . . . . . . . . . . . . . . . . Parts Recycled . | . . . . . . . . . . . . . . . . . . . . . . . . Recycled Matter . | . . . . . . . . . . . . . . . . . . . . . . . . Retrieved Matter . | . . . . . . . . . . . . . . . . . . . . . . . . Retrieved Components . | . . . . . . . . . . . . . . . . . . . . . . . . Parts Scanalyzed . | . . . . . . . . . . . . . . . . . . . . . . . . Part Schematics Acquired . | . . . . . . . . . . . . . . . . . . . . . . . . Parts Damaged . | . . . . . . . . . . . . . . . . . . . . . . . . Bothacking | -11 -10 -10 -10 -9 -8 -7 -6 -6 -6 -6 -5 -5 -5 -5 -4 -4 -4 -4 -3 -3 -3 -2 -2 ------------ Run | Scr Mat Min Exi Min Mat Fac Fac Low Low Dat Pro Fac Ext Cet Fac Upp Upp Zhi Pro Res Tes Res Qua Used RIF Installer . | . . . . . . . . . . . . . . . . . . . . . . . . Robots Hacked . | . . . . . . . . . . . . . . . . . . . . . . . . Non-combat . | . . . . . . . . . . . . . . . . . . . . . . . . Combat . | . . . . . . . . . . . . . . . . . . . . . . . . Robot Hacks Applied . | . . . . . . . . . . . . . . . . . . . . . . . . Relay Couplers Released 2 | . . . . . . . . . . . . . . . . . . . . . . 2 . Machine Destruction 2 | . . . . . . . . . . . . . . . . . . . . . . 2 . Fabnet Peak Effective % . | . . . . . . . . . . . . . . . . . . . . . . . . Robots Rewired 11 | . . . . . . . . . . . . . 10 . . . . . . . . 1 . Allies Hacked . | . . . . . . . . . . . . . . . . . . . . . . . . Hacks Repelled . | . . . . . . . . . . . . . . . . . . . . . . . . Allies | -11 -10 -10 -10 -9 -8 -7 -6 -6 -6 -6 -5 -5 -5 -5 -4 -4 -4 -4 -3 -3 -3 -2 -2 -------- Run | Scr Mat Min Exi Min Mat Fac Fac Low Low Dat Pro Fac Ext Cet Fac Upp Upp Zhi Pro Res Tes Res Qua Total Allies 31 | . . 3 . 1 . . . . . . 1 . 20 5 . . . . . . . 1 . Largest Group 17 | . . 3 . 1 . . . . . . 1 1 12 17 17 . . . . . . 1 . Highest-Rated Group 957 | . . 40 . 31 . . . . . . 96 96 482 957 938 . . . . . . 35 . Highest-Rated Ally 159 | . . 16 . 31 . . . . . . 96 96 159 159 150 . . . . . . 35 . Total Orders . | . . . . . . . . . . . . . . . . . . . . . . . . Ally Attacks 268 | . . 20 . 9 . . . . . . 16 6 49 70 98 . . . . . . . . Total Damage 6153 | . . 194 . 103 . . . . . . 417 135 1107 1706 2491 . . . . . . . . Kills 46 | . . 1 . 2 . . . . . . 3 1 6 17 16 . . . . . . . . Allies Corrupted 1 | . . 1 . . . . . . . . . . . . . . . . . . . . . Allies Melted . | . . . . . . . . . . . . . . . . . . . . . . . . Intel | -11 -10 -10 -10 -9 -8 -7 -6 -6 -6 -6 -5 -5 -5 -5 -4 -4 -4 -4 -3 -3 -3 -2 -2 ------- Run | Scr Mat Min Exi Min Mat Fac Fac Low Low Dat Pro Fac Ext Cet Fac Upp Upp Zhi Pro Res Tes Res Qua Robot Analysis Total 6 | . . . . 2 . . . . . . . . . . . . . 4 . . . . . Derelict Logs Recovered 4 | . . 1 . 1 . . . . . . 1 . . . . 1 . . . . . . . Drone Launches . | . . . . . . . . . . . . . . . . . . . . . . . . Drone Recoveries . | . . . . . . . . . . . . . . . . . . . . . . . . Exploration | -11 -10 -10 -10 -9 -8 -7 -6 -6 -6 -6 -5 -5 -5 -5 -4 -4 -4 -4 -3 -3 -3 -2 -2 ------------- Run | Scr Mat Min Exi Min Mat Fac Fac Low Low Dat Pro Fac Ext Cet Fac Upp Upp Zhi Pro Res Tes Res Qua Turns Passed 17804 | 98 2157 853 384 1050 1104 766 1345 289 342 43 301 468 1067 655 516 754 876 327 529 1549 959 1322 50 Spaces Moved 13393 | 52 985 276 228 464 660 900 1743 369 569 86 277 409 893 322 567 481 429 177 377 1607 683 794 45 Core 77 | 10 . . . . . . . . . . . . . . . . . . . 1 . 21 45 Treads 2365 | 42 985 276 228 464 370 . . . . . . . . . . . . . . . . . . Legs 1115 | . . . . . . . 2 . . . . . . . . . . . . . 340 773 . Wheels . | . . . . . . . . . . . . . . . . . . . . . . . . Hover 5557 | . . . . . . . . . . . . 362 893 322 567 481 429 177 377 1606 343 . . Flight 4279 | . . . . . 290 900 1741 369 569 86 277 47 . . . . . . . . . . . Fastest Speed 45 | 50 160 160 165 165 50 50 50 50 50 50 50 50 68 68 68 68 68 100 61 45 45 50 50 Average Speed 85 | 138 160 163 165 165 119 50 50 50 50 50 50 86 68 68 68 68 127 138 120 49 90 109 53 Slowest Speed 360 | 160 160 165 165 165 245 50 260 50 50 50 50 360 68 68 68 68 146 216 150 350 190 190 200 Overloaded Moves 21 | . . . . . . . . . . . . . . . . . . . . 21 . . . Propulsion Burnouts . | . . . . . . . . . . . . . . . . . . . . . . . . Robots Hopped 38 | . . . . . 7 6 23 . . . . 2 . . . . . . . . . . . Cave-ins Triggered . | . . . . . . . . . . . . . . . . . . . . . . . . Teleports 1 | . . . . . . . . . . . . . . . . . . . . . 1 . . Exploration Rate (%) 50 | 5 96 55 60 89 34 13 40 51 67 74 52 11 83 76 18 69 54 61 62 50 68 23 10 Regions Visited 23 Branch Regions 15 Pre-discovered Areas 6 | . . 1 . . . . . . . 1 . . . . . 1 . 3 . . . . . Known Exits Taken 17 | . . . . 1 . 1 1 1 1 1 1 1 1 1 1 1 1 1 1 1 1 . . Unknown Exits Taken 6 | 1 1 1 1 . 1 . . . . . . . . . . . . . . . . 1 . Scrap Searched 11 | . . 1 . 1 . . . . 6 . 1 . . . . 1 1 . . . . . . Spaces Dug 50 | . . . . . . 6 9 . . . . . 1 . . . . . . 28 4 2 . Terrain Destroyed 215 | . . . . . 5 11 21 6 3 . 7 59 14 8 11 2 4 . 4 44 8 6 2 Melee 1 | . . . . . . . . . . . . . 1 . . . . . . . . . . Projectile 143 | . . . . . 5 11 21 6 3 . 7 3 13 8 11 . . . . 44 4 5 2 AOE 56 | . . . . . . . . . . . . 56 . . . . . . . . . . . Terrain Rammed . | . . . . . . . . . . . . . . . . . . . . . . . . Walls Destroyed . | . . . . . . . . . . . . . . . . . . . . . . . . Machines Disabled . | . . . . . . . . . . . . . . . . . . . . . . . . Actions | -11 -10 -10 -10 -9 -8 -7 -6 -6 -6 -6 -5 -5 -5 -5 -4 -4 -4 -4 -3 -3 -3 -2 -2 --------- Run | Scr Mat Min Exi Min Mat Fac Fac Low Low Dat Pro Fac Ext Cet Fac Upp Upp Zhi Pro Res Tes Res Qua Total 18549 | 67 1487 661 238 711 895 1155 2132 454 597 85 415 485 1230 733 650 876 708 220 425 2225 965 1075 60 Wait 3687 | . 418 357 1 218 135 188 283 71 9 . 125 27 141 384 14 361 242 . 13 418 189 93 . Move 13296 | 51 984 275 227 463 646 887 1697 368 568 85 276 404 892 321 566 480 428 176 376 1606 682 793 45 Hop 35 | . . . . . 6 6 21 . . . . 2 . . . . . . . . . . . Pick Up 116 | 3 15 4 3 . 15 6 11 1 1 . . 3 9 4 10 1 2 4 1 10 5 8 . Fast Attach 163 | 7 6 2 . 1 9 5 17 . 1 . . 10 8 2 9 . 4 9 3 23 19 25 3 Attach 49 | 1 . . . . 4 2 2 1 . . . 2 3 . 3 1 1 . 2 9 6 12 . Detach 11 | 1 1 . . . . . . . . . . . 1 . 1 . . . . . 3 4 . Swap 59 | . 7 4 1 1 7 3 5 . . . 1 3 6 2 3 . 2 . 1 3 7 3 . Drop 202 | . 14 9 6 2 24 11 28 . 2 . . 8 11 6 18 1 4 11 1 17 20 9 . Fire 787 | 4 42 10 . 21 49 47 53 13 16 . 13 26 79 14 26 16 25 20 22 126 34 122 9 Melee 2 | . . . . . . . . . . . . . 2 . . . . . . . . . . Ram 3 | . . . . . . . . . . . . . . . . . . . . . . . 3 Kick . | . . . . . . . . . . . . . . . . . . . . . . . . Crush . | . . . . . . . . . . . . . . . . . . . . . . . . Escape Stasis 67 | . . . . . . . 15 . . . . . 39 . . . . . . 13 . . . Rewire 51 | . . . . . . . . . . . . . 39 . . . . . 6 . . 6 . Trap 21 | . . . . 5 . . . . . . . . . . . 16 . . . . . . . Miscellaneous . | . . . . . . . . . . . . . . . . . . . . . . . . Route ------- -11/Scrapyard -10/Materials (discovered 5 exits: [*Mat x3] / *Min x2) -10/Mines (discovered 2 exits: [*Mat] / *Exi) -10/Exiles -9/Mines (discovered 2 exits: *Mat x2) -8/Materials -7/Factory -6/Factory -6/Lower Caves -6/Lower Caves (discovered 2 exits: *Fac / *Dat) -6/Data Miner -5/Proximity Caves -5/Factory -5/Extension (discovered 2 exits: *Fac / *Cet) -5/Cetus (discovered 2 exits: *Fac / [*Arc]) -4/Factory -4/Upper Caves -4/Upper Caves -4/Zhirov -3/Proximity Caves -3/Research (discovered 3 exits: *Res x2 / *Tes) -3/Testing -2/Research -2/Quarantine History --------- Turn | Location | Event 15 | -11/Scrapyard | Discovered new exit (range 14) 99 | -11/Scrapyard | Entered Materials 306 | -10/Materials | Build established: Mutant 542 | -10/Materials | Discovered new exit (range 10) 889 | -10/Materials | Discovered new exit (range 15) 1481 | -10/Materials | Discovered new exit (range 16) 1607 | -10/Materials | Discovered new exit (range 16) 2020 | -10/Materials | Discovered new exit (range 11) 2256 | -10/Materials | Entered Mines 2421 | -10/Mines | Assisted by bots powering up and referring to "LRC-V3" 2495 | -10/Mines | Met a Derelict shopkeep closing up shop 2643 | -10/Mines | Learned location of Zion (-7) 2708 | -10/Mines | Discovered new exit (range 3) 2819 | -10/Mines | Excavation squad dispatched 2819 | -10/Mines | A large section of the Mines collapsed 2835 | -10/Mines | Found a damaged Exp. Sensor Array with a note attached 2839 | -10/Mines | Found Prototype Device 2839 | -10/Mines | Identified Exp. Sensor Array 2872 | -10/Mines | Deemed a non-threat by the Exiles lab entrance 2872 | -10/Mines | Discovered new exit (range 5) 3109 | -10/Mines | Entered Exiles 3147 | -10/Exiles | Met 8R-AWN 3179 | -10/Exiles | Met EX-HEX 3227 | -10/Exiles | Met EX-BIN 3245 | -10/Exiles | Aligned with FarCom system 3246 | -10/Exiles | Given EX-Vault access code 3296 | -10/Exiles | Opened EX-Vault 3316 | -10/Exiles | Found Flying Fortress v7 3321 | -10/Exiles | Found Skeleton Box 3327 | -10/Exiles | Found Modified TNC 3362 | -10/Exiles | Warned to stay clear of 0b10 Research branches 3420 | -10/Exiles | Met EX-DEC 3474 | -10/Exiles | Discovered new exit (range 14) 3493 | -10/Exiles | Stole three prototypes: Flying Fortress v7, Skeleton Box, Modified TNC 3493 | -10/Exiles | Entered Mines 3512 | -9/Mines | Met a Derelict bent on vengeance 3618 | -9/Mines | Found a hidden stash of uninstalled traps 3718 | -9/Mines | Core integrity fell below 50% 3911 | -9/Mines | Received a Rocket Launcher from a helpful Derelict 4246 | -9/Mines | Received a Mining Laser from a helpful Derelict 4369 | -9/Mines | Discovered new exit (range 10) 4452 | -9/Mines | Identified exit to Materials 4543 | -9/Mines | Entered Materials 4543 | -8/Materials | Evolved 4 slots: Propulsion x2, Utility x2 5194 | -8/Materials | Build established: Scavenger-Mutant 5240 | -8/Materials | Discovered new exit (range 14) 5614 | -8/Materials | Repaired Exp. Sensor Array 5647 | -8/Materials | Entered Factory 5647 | -7/Factory | Evolved 2 slots: Utility x2 5649 | -7/Factory | FarCom data flow suspended 5789 | -7/Factory | Build established: Mutant 6290 | -7/Factory | Discovered new exit (range 6) 6320 | -7/Factory | Identified exit to Factory 6413 | -7/Factory | Entered another Factory area 6413 | -6/Factory | Evolved 2 slots: Utility x2 6878 | -6/Factory | Build established: Scout 7599 | -6/Factory | Spotted B-75 Beast 7715 | -6/Factory | Discovered new exit (range 8) 7729 | -6/Factory | Identified exit to Lower Caves 7758 | -6/Factory | Entered Lower Caves 7860 | -6/Lower Caves | Attacked by a delusional Derelict stockpiling parts 7892 | -6/Lower Caves | Build established: Mutant 8027 | -6/Lower Caves | Discovered new exit (range 9) 8034 | -6/Lower Caves | Identified exit to Lower Caves 8047 | -6/Lower Caves | Entered another Lower Caves area 8128 | -6/Lower Caves | Discovered new exit (range 15) 8134 | -6/Lower Caves | Identified exit to Factory 8243 | -6/Lower Caves | Attracted the attention of an 0b10 checkpoint 8318 | -6/Lower Caves | Discovered new exit (range 5) 8319 | -6/Lower Caves | Identified exit to Data Miner 8389 | -6/Lower Caves | Entered Data Miner 8389 | -6/Data Miner | Discovered new exit (range 6) 8396 | -6/Data Miner | Met Data Miner 8409 | -6/Data Miner | Learned location of Section 7 (-2) 8409 | -6/Data Miner | Acquired the access code to Warlord's prototype stash 8417 | -6/Data Miner | Received God Mode back door access code from Data Miner 8431 | -6/Data Miner | Identified exit to Proximity Caves 8432 | -6/Data Miner | Entered Proximity Caves 8457 | -5/Proximity Caves | Escorted by Enhanced Grunt 8503 | -5/Proximity Caves | Spotted B-75 Beast 8606 | -5/Proximity Caves | Learned Factory stockpile data 8683 | -5/Proximity Caves | Discovered exit to Factory (range 16) 8733 | -5/Proximity Caves | Entered Factory 8733 | -5/Factory | Accompanied by 1 ally 8733 | -5/Factory | Evolved 2 slots: Utility x2 9199 | -5/Factory | Remotely autohacked Sealed Blast Doors 9199 | -5/Factory | Discovered new exit (range 5) 9201 | -5/Factory | Identified exit to Extension 9201 | -5/Factory | Entered Extension 9403 | -5/Extension | Rescued a captive Derelict 9421 | -5/Extension | Rescued a captive Derelict 9439 | -5/Extension | Rescued a captive Derelict 9440 | -5/Extension | Rescued a captive Derelict 9566 | -5/Extension | Spotted B-75 Beast 9729 | -5/Extension | Destroyed B-75 Beast 9732 | -5/Extension | Spotted B-75 Beast 9776 | -5/Extension | Destroyed B-75 Beast 9801 | -5/Extension | Lost 3 parts (2p1u) 9836 | -5/Extension | Rescued A7 9891 | -5/Extension | Rescued a captive Derelict 10026 | -5/Extension | Disrupted transfer network 10117 | -5/Extension | Rescued a captive Derelict 10117 | -5/Extension | Rescued a captive Derelict 10195 | -5/Extension | Rescued a captive Derelict 10196 | -5/Extension | Rescued a captive Derelict 10215 | -5/Extension | Discovered new exit (range 10) 10218 | -5/Extension | Discovered new exit (range 6) 10260 | -5/Extension | Identified exit to Cetus 10268 | -5/Extension | Entered Cetus 10268 | -5/Cetus | Accompanied by 12 allies (A7) 10273 | -5/Cetus | Acquired a Cetus Manufacturing Module code from A7 10278 | -5/Cetus | Spotted Cetus Guard 10278 | -5/Cetus | Spotted Cetus Guard 10280 | -5/Cetus | Spotted Cetus Guard 10282 | -5/Cetus | Allies destroyed Cetus Guard 10282 | -5/Cetus | Spotted Cetus Guard 10287 | -5/Cetus | Allies destroyed Cetus Guard 10296 | -5/Cetus | Allies destroyed Cetus Guard 10297 | -5/Cetus | Allies destroyed Cetus Guard 10342 | -5/Cetus | Started Cetus Manufacturing Module 10354 | -5/Cetus | Remotely autohacked Sealed Heavy Doors 10359 | -5/Cetus | Escorted A7 to Cetus Mainframe 10367 | -5/Cetus | Manufactured an Enhanced Grunt 10375 | -5/Cetus | Build established: Commander-Mutant 10392 | -5/Cetus | Manufactured an Enhanced Grunt 10417 | -5/Cetus | Manufactured an Enhanced Grunt 10442 | -5/Cetus | Manufactured an Enhanced Grunt 10467 | -5/Cetus | Manufactured an Enhanced Grunt 10544 | -5/Cetus | Discovered new exit (range 21) 10563 | -5/Cetus | Spotted Cetus Guard 10563 | -5/Cetus | Spotted Cetus Guard 10564 | -5/Cetus | Spotted Cetus Guard 10565 | -5/Cetus | Spotted Cetus Guard 10566 | -5/Cetus | Destroyed Cetus Guard 10571 | -5/Cetus | Allies destroyed Cetus Guard 10573 | -5/Cetus | Discovered new exit (range 22) 10582 | -5/Cetus | Allies destroyed Cetus Guard 10584 | -5/Cetus | Allies destroyed Cetus Guard 10587 | -5/Cetus | Met Revision 17 10781 | -5/Cetus | Identified exit to Factory 10923 | -5/Cetus | Entered Factory 10923 | -4/Factory | Accompanied by 17 allies (A7) 10923 | -4/Factory | Evolved 2 slots: Utility x2 10928 | -4/Factory | Received a hacking code to weaken MAIN.C 11112 | -4/Factory | P-70 Sage assimilated allied QI-FTV(h) 11406 | -4/Factory | Discovered new exit (range 5) 11412 | -4/Factory | Identified exit to Upper Caves 11439 | -4/Factory | Entered Upper Caves 11667 | -4/Upper Caves | Build established: Scavenger-Scout 11766 | -4/Upper Caves | Encountered a Warlord checkpoint 12159 | -4/Upper Caves | Discovered new exit (range 14) 12193 | -4/Upper Caves | Identified exit to Upper Caves 12193 | -4/Upper Caves | Entered another Upper Caves area 12193 | -4/Upper Caves | Spotted KG-27K(f) 12193 | -4/Upper Caves | Spotted QP-BHU(f) 12194 | -4/Upper Caves | Encountered a Master Thief 12194 | -4/Upper Caves | Encountered a Master Thief 12194 | -4/Upper Caves | Skeleton Box stolen by Master Thief 12194 | -4/Upper Caves | Destroyed QP-BHU(f) 12206 | -4/Upper Caves | Spotted 4Z-8EC(f) 12207 | -4/Upper Caves | Encountered a Master Thief 12227 | -4/Upper Caves | Lgt. Antimatter Reactor stolen by Master Thief 12322 | -4/Upper Caves | Spotted B-86 Titan 12718 | -4/Upper Caves | Build established: Scavenger-Skirmisher 12936 | -4/Upper Caves | Discovered new exit (range 10) 13067 | -4/Upper Caves | Identified exit to Zhirov 13069 | -4/Upper Caves | Entered Zhirov 13069 | -4/Zhirov | Discovered new exit (range 3) 13096 | -4/Zhirov | Met Zhirov 13125 | -4/Zhirov | Learned location of Quarantine (-2) 13125 | -4/Zhirov | Learned location of Testing (-3) 13125 | -4/Zhirov | Learned location of Command (-1) 13133 | -4/Zhirov | Zhirov requested help retrieving the SGEMP Prototype 13156 | -4/Zhirov | Found Alien Artifact 13156 | -4/Zhirov | Identified Integrated Dissipator 13156 | -4/Zhirov | Installed Integrated Dissipator, increased core heat dissipation (+20) 13178 | -4/Zhirov | Found Alien Artifact 13395 | -4/Zhirov | Identified exit to Proximity Caves 13396 | -4/Zhirov | Entered Proximity Caves 13789 | -3/Proximity Caves | Attracted the attention of an 0b10 outpost 13861 | -3/Proximity Caves | Lost 3 parts (1p1u1w) 13921 | -3/Proximity Caves | Discovered new exit (range 9) 13924 | -3/Proximity Caves | Identified exit to Research 13925 | -3/Proximity Caves | Entered Research 13925 | -3/Research | Evolved 2 slots: Utility x2 13937 | -3/Research | Lost 6 parts (3n2u1w) 14432 | -3/Research | Build established: Scavenger-Scout 14768 | -3/Research | Destroyed 9 combat bots 14844 | -3/Research | Discovered new exit (range 3) 14844 | -3/Research | Identified exit to Research 15330 | -3/Research | Discovered exit to Research (range 8) 15369 | -3/Research | Build established: Scavenger-Mutant 15418 | -3/Research | Discovered new exit (range 5) 15421 | -3/Research | Identified exit to Testing 15474 | -3/Research | Entered Testing 15474 | -3/Testing | Spotted PH-54N0S1WEOV 15592 | -3/Testing | Found Prototype Energy Cannon 15592 | -3/Testing | Identified Null Cannon 15632 | -3/Testing | Found Prototype Ballistic Cannon 15632 | -3/Testing | Identified Omega Cannon 15675 | -3/Testing | Build established: Mutant 15693 | -3/Testing | Lost 3 parts (1n2u) 15698 | -3/Testing | Spotted Superbehemoth 15979 | -3/Testing | Identified Transdimensional Reconstructor 15979 | -3/Testing | Warped through subspace 16024 | -3/Testing | Build established: Scavenger-Mutant 16181 | -3/Testing | Lost 3 parts (1n2u) 16182 | -3/Testing | Found Prototype Leg 16182 | -3/Testing | Identified Myomer Exoskeleton 16307 | -3/Testing | Discovered exit to Research (range 14) 16433 | -3/Testing | Entered Research 16433 | -2/Research | Evolved 2 slots: Utility x2 16579 | -2/Research | Spotted B-90 Cyclops 16865 | -2/Research | Build established: Mutant 17183 | -2/Research | First assault squad dispatched 17338 | -2/Research | Build established: Scavenger-Mutant 17403 | -2/Research | Incoming assault squad redirected 17434 | -2/Research | Lost 3 parts (1p1u1w) 17441 | -2/Research | Found Quantum Capacitor 17566 | -2/Research | System corruption reached 10% 17593 | -2/Research | Lost 4 parts (4u) 17700 | -2/Research | Core integrity fell below 50% 17704 | -2/Research | Lost 12 parts (1p2n5u4w) 17732 | -2/Research | Spotted B-90 Cyclops 17751 | -2/Research | Discovered new exit (range 8) 17755 | -2/Research | Entered Quarantine 17776 | -2/Quarantine | Core integrity fell below 20% 17805 | -2/Quarantine | Destroyed by P-80 Master with Gamma Rifle Last Messages --------------- reproduction. Basic life functions are all supported by significant biomechanical augmentations, making them far more resilient than their anatomy would otherwise suggest; all [Sigix] aboard the [Leopard] also wore an extremely durable and powerful full-body [Sigix] Exoskeleton. 17775_ System corrupted: Substantial component data lost. 17775_ Slammed into P-80 Master. 17776_ Adv. Target Analyzer broken. 17776_ Destabilizing: Short circuit. 17777_ Slammed into P-80 Master. 17780_ Acquired Hardcell Cannon. 17781_ P-80 Master Imp. Antigrav System blasted off. 17783_ P-80 Master Adv. Remote Datajack blasted off. 17785_ P-80 Master destroyed. 17794_ System corrupted: Heat flow error (+103). 17795_ System corrupted: Hardcell Cannon jammed. 17799_ Hardcell Cannon destroyed. 17799_ Scanalyzer disabled. 17799_ U-05 Engineer builds a Wall. 17800_ Acquired Mic. Antimatter Reactor. 17803_ Acquired Imp. Antigrav System. Map ----- +----------------------------------------------------+ | ????????????# # "&" "&" #??????? | | ????????????# # """ """ #??????? | | ????????????# + ""T"" #??????? | | ????????????# # #??????? | | ????????????# # #??????? | | ??########### # #??????? | | ??# # #####+#####??????? | | ??# # #???? #??????????? | | ??? "" # ##### #########??? | | ??# """ + #??? | | ??# "*" # #??? | | ??# """ # #??? | | ??# "" # #??? | | ???? # ###+###### #??? | | ????######### # #????????? | | ????????????# # """ #????????? | | ????????????# # "/" #????????? | | ???###?###### # """"" #????????? | | ??? # + """"" #????????? | | ??? # # +????????? | | ??"""" """" # #########????????? | | ? """" """" # #????????????????? | | # """" """" ; w #????????????????? | | # """" """"%#u #????????????????? | | # %!!p/% ###??????????????? | | # @%#% +??????????????? | | # !| # ###??????????????? | | # # #????????????????? | | # """ " " # #????????????????? | | # = """S""" # #????????????????? | | # # #????????????????? | | ############# #????????????????? | | ????????????# #????????????????? | | ???????????? #????????????????? | | ????????????##+###????????????????? | | ?????????????? ??????????????????? | | ?????????????? "??????????????????? | | ?????????????? "??????????????????? | | ?????????????? ???????????????????? | | ?????????????? ???????????????????? | | ??????????????????????????????????? | | ??????????????????????????????????? | | ??????????????????????????????????? | | ??????????????????????????????????? | | ??????????????????????????????????? | | ??????????????????????????????????? | | ??????????????????????????????????? | | ??????????????????????????????????? | | ??????????????????????????????????? | | ??????????????????????????????????? | +----------------------------------------------------+ Best States ------------- Heat Dissipation 126 Coolant Potential 50 Energy Generation 25 Energy Capacity 390 Matter Stores 550 Matter Capacity 550 Sight Range 22 Robot Scan Range 20 Terrain Scan Density 210 Jamming Range 16 Cloak Strength 3 Corruption Block 20 Armor Coverage 600 Resistance: KI 25 Core Shielding 30 Propulsion Shielding 66 Utility Shielding 66 Weapon Shielding 90 Melee Speed Boost 30 Phase Shifting 10 Evasion (%) 70 Targeting Accuracy 16 Target Analysis 12 Core Analysis 6 Armor Integrity Analysis 30 Recoil Reduction 4 Matter Filtering 45 Defensive Hacking 24 Item Schematics ----------------- Combat Drone Bay | -6/Data Miner | Free Lgt. Regenerative Plating | -6/Data Miner | Free Enh. Armored Leg | -6/Data Miner | Free Imp. KE Penetrator | -6/Data Miner | Free Prc. Energy Filter | -6/Data Miner | Free Hvy. Siege Treads | -6/Data Miner | Free HERF Cannon | -6/Data Miner | Free Adv. Trap Scanner | -6/Data Miner | Free Variable Charge Gun | -6/Data Miner | Free Nova Cannon | -6/Data Miner | Free Lrn. Terrain Scanner | -6/Data Miner | Free Assault Drone Bay | -4/Zhirov | Free Exp. Heat Sink | -4/Zhirov | Free Exp. Optical Array | -4/Zhirov | Free Imp. Arc Thrower | -4/Zhirov | Free Robot Schematics ------------------ S-27 Virus | -6/Data Miner | Free G-50 Soldier | -6/Data Miner | Free B-60 Warrior | -6/Data Miner | Free E-15 Imp | -6/Data Miner | Free Fabricated ------------ Nothing Alien Tech Used ----------------- Integrated Dissipator Transdimensional Reconstructor Achievements -------------- None Challenges ------------ None Game ------ Seed HackingPlasmaSuite Manual? 0 Play Time 02:26:33 Cumulative 308.7 hours Start 2022.06.05 @ 09:45:58 End 2022.06.05 @ 22:37:22 Sessions 5 Manual Loads 0 Difficulty Rogue Special Mode None Game No. 548 Rogue 393 Adventurer 148 Explorer 7 Win Type - Total 10 Types 8/0/1/1/0/0/0/0/0 Lore% 73 Gallery% 86 Achievement% 66 Wizard Run 0 Options --------- ASCII 0 Keyboard 0 Movement Numpad Keybinds 0 Fullscreen 1 Font 18/SmallcapsGlow Map View 76x50 Tactical HUD 1 Map Filters NONE Filters NONE Steam 1 RUN: 00176a52-2a94-4b87-963f-3f8602235413